Cogmind - Beta 15 @@@ ROGUE MODE // 2025.06.16 @ 06:43:36 Player: CL-1C0 Result: Destroyed by P-80 Master with Gamma Rifle Performance ------------- Evolutions (7) 3500 Regions Visited (17) 3400 Robots Destroyed (93) 465 Value Destroyed (4305) 4305 Prototype IDs (31) 620 Alien Tech Used (0) 0 Bonus (-2404) -2404 TOTAL SCORE: 9886 Bonus ------- Pacifist 634 High Alert Combat Kills 197 Follower Combat Kills 87 Entered DSFs 500 Aligned with FarCom 300 Friendly Fire -4122 Cogmind --------- Core Integrity 0/1300 Matter 199/300 Energy 177/180 System Corruption 44% Temperature Cool (6) Movement Flying (20) Location -3/Armory Parts ------- > --- POWER (2) -------- Light Particle Reactor > --- PROPULSION (6) --- Electron Diverter Electron Diverter Electron Diverter Electron Diverter Electron Diverter Electron Diverter > --- UTILITY (10) ----- Advanced Power Amplifier Advanced Heat Sink Advanced Visual Processing Unit Quantum Capacitor Graphene Brace Makeshift System Shield > --- WEAPON (3) ------- Quantum Rifle Enhanced Force Lance > --- INVENTORY (5) ---- Micro Antimatter Reactor Energy Well (350) Compact HERF Cannon Advanced Micro-nuke Launcher Powered Hammer Peak State ------------ > --- POWER ------------ Light Antimatter Reactor Micro Antimatter Reactor > --- PROPULSION ------- Armored Heavy Treads Electron Diverter Electron Diverter Electron Diverter Electron Diverter > --- UTILITY ---------- Advanced Power Amplifier Advanced Heat Sink Advanced Cooling System Energy Well Advanced Visual Processing Unit Quantum Capacitor Graphene Brace Advanced Hacking Suite Makeshift System Shield > --- WEAPON ----------- Quantum Rifle Compact HERF Cannon Enhanced Force Lance > --- INVENTORY -------- Light Particle Reactor Energy Well Compact HERF Cannon Advanced Micro-nuke Launcher Powered Hammer [Rating: 151] Favorites ----------- Power Micro Antimatter Reactor Engine Light Ion Engine Power Core Light Nuclear Core Reactor Micro Antimatter Reactor Propulsion VTOL Module Treads Improved Treads Leg Flexi-carbon Leg Hover Unit Combat Gravmag System Flight Unit VTOL Module Utility Advanced Hacking Suite Device Advanced Weight Redist. System Storage Medium Storage Unit Processor Advanced Visual Processing Unit Hackware Advanced Hacking Suite Protection Medium Regenerative Plating Weapon Enhanced Force Lance Energy Gun Quantum Rifle Energy Cannon Compact HERF Cannon Ballistic Cannon Bore Cannon Launcher Advanced Micro-nuke Launcher Special Weapon Improved Plasma Cutter Slashing Weapon Greatsword Piercing Weapon Enhanced Force Lance Build | -11 -10 -10 -10 -9 -8 -7 -7 -6 -5 -5 -5 -5 -4 -4 -4 -3 -3 ------- Run | Yrd Mat Min Exi Min Mat Fac DSF Fac Fac Upp Upp War Pro Fac Ext Res Arm Slots Evolved 14 | . . . . . 4 2 . 2 2 . . . . 2 . 2 . Power 1 | . . . . . . . . . 1 . . . . . . . . Propulsion 4 | . . . . . 2 . . 1 1 . . . . . . . . Utility 8 | . . . . . 2 2 . 1 . . . . . 2 . 1 . Weapon 1 | . . . . . . . . . . . . . . . . 1 . Parts Attached 113 | 1 1 . . 4 2 . 3 7 7 4 3 . 1 4 21 27 28 Power 17 | . . . . 1 . . . 2 . 1 . . . . 3 4 6 Engine 2 | . . . . 1 . . . 1 . . . . . . . . . Core 3 | . . . . . . . . 1 . 1 . . . . 1 . . Reactor 12 | . . . . . . . . . . . . . . . 2 4 6 Propulsion 42 | 1 . . . 3 2 . . 2 1 3 . . . . 7 11 12 Treads 4 | 1 . . . . . . . . . . . . . . 1 . 2 Leg 10 | . . . . . . . . . . . . . . . 6 2 2 Wheel . | . . . . . . . . . . . . . . . . . . Hover 14 | . . . . . . . . 2 1 1 . . . . . 8 2 Flight 14 | . . . . 3 2 . . . . 2 . . . . . 1 6 Utility 35 | . 1 . . . . . 1 3 6 . 2 . 1 4 6 5 6 Device 17 | . . . . . . . 1 . 4 . . . . . 4 3 5 Storage 2 | . . . . . . . . . . . 1 . . . . . 1 Processor 6 | . 1 . . . . . . 2 . . 1 . 1 . . 1 . Hackware 7 | . . . . . . . . 1 1 . . . . 4 . 1 . Protection 3 | . . . . . . . . . 1 . . . . . 2 . . Artifact . | . . . . . . . . . . . . . . . . . . Weapon 19 | . . . . . . . 2 . . . 1 . . . 5 7 4 Energy Gun 3 | . . . . . . . . . . . . . . . 2 . 1 Energy Cannon 5 | . . . . . . . . . . . . . . . 1 1 3 Ballistic Gun . | . . . . . . . . . . . . . . . . . . Ballistic Cannon 1 | . . . . . . . . . . . . . . . 1 . . Launcher 4 | . . . . . . . 1 . . . . . . . . 3 . Special Weapon 1 | . . . . . . . . . . . . . . . 1 . . Impact Weapon . | . . . . . . . . . . . . . . . . . . Slashing Weapon 2 | . . . . . . . 1 . . . 1 . . . . . . Piercing Weapon 3 | . . . . . . . . . . . . . . . . 3 . Special Melee Weapon . | . . . . . . . . . . . . . . . . . . Unidentified Prototypes 8 | . . . . . . . . . . . . . . . 2 4 2 Corrupted Parts 2 | . . . . . . . . . . . . . . . . . 2 System Corruption 12 | . . . . . . . . . . . . . . . . . 12 Parts Lost 53 | . . . . 1 . . 5 . . 1 . . 3 . 12 20 11 Power 7 | . . . . . . . . . . . . . . . 2 2 3 Propulsion 23 | . . . . 1 . . 4 . . 1 . . 1 . 3 10 3 Utility 15 | . . . . . . . . . . . . . 2 . 4 6 3 Weapon 8 | . . . . . . . 1 . . . . . . . 3 2 2 Highest Loss Streak 10 | . . . . 1 . . 5 . . 1 . . 3 . 5 10 4 To Critical Strikes . | . . . . . . . . . . . . . . . . . . Average Backups 6 | 4 . . 1 1 1 1 1 3 3 4 7 10 10 7 7 9 4 Power . | 1 . . . . . . . . . . . . . . . . . Propulsion . | 2 . . . . . . . . . . . . . . . 2 . Utility 2 | . . . . 1 1 1 . 1 2 2 4 5 5 2 3 3 . Weapon 2 | 1 . . . . . . 1 1 1 1 1 4 4 4 2 2 3 Tool/Special . | . . . . . . . . . . . . . . . . . . Unused Backups 16 | . . . . 1 . . . . . 1 . . . . 2 9 3 Power 1 | . . . . 1 . . . . . . . . . . . . . Propulsion 2 | . . . . . . . . . . . . . . . . 2 . Utility 7 | . . . . . . . . . . 1 . . . . 1 3 2 Weapon 6 | . . . . . . . . . . . . . . . 1 4 1 Tool/Special . | . . . . . . . . . . . . . . . . . . Average Slot Usage (%) 74 | . 18 28 28 44 51 46 44 20 59 74 87 88 88 82 84 82 64 Core 3 | . . . . . . . . 1 5 6 11 11 11 10 3 . . Reactor 3 | . . . . . . . . . . . . . . . 4 8 6 Treads 2 | . 14 14 14 6 . . . . . . . . . . 3 . 5 Leg 4 | . . . . . . . . . . . . . . . 7 12 2 Hover 8 | . . . . . . . . 6 12 17 17 17 17 10 5 11 . Flight 5 | . . . . 15 33 30 23 . . 2 11 11 11 10 5 . 3 Device 12 | . . . . . . . 4 . 10 17 22 23 23 10 14 8 16 Storage 3 | . . . . . . . . . . . 3 5 5 5 5 3 2 Processor 5 | . 4 14 14 14 9 7 5 2 9 4 1 5 5 5 5 5 8 Hackware 12 | . . . . . . . . 3 7 11 9 5 5 25 18 13 9 Protection 1 | . . . . . . . . . 4 5 1 . . . 1 3 . Slashing Weapon 1 | . . . . . . . 3 2 5 5 5 5 5 5 . . . Piercing Weapon 2 | . . . . . . . . . . . . . . . . 10 . Peak Build Rating 151 | 1 2 2 3 5 7 6 22 26 46 62 65 65 65 67 95 132 151 Average Rating 75 | 1 1 2 2 4 6 6 14 12 37 48 62 65 63 66 73 112 105 On Entrance 30 | 6 1 2 2 3 5 6 6 2 26 43 62 65 65 53 67 80 52 Naked Turns 43 | . . . . . . . 6 37 . . . . . . . . . Heaviest Build 75 | . . . . 3 3 3 16 10 20 29 37 37 37 28 51 75 62 Greatest Support 130 | 3 3 3 3 8 16 16 16 12 35 40 40 40 40 34 113 109 130 Greatest Overweight (x) 5 | . . . . . . . . 2 . . . . 1 . 2 2 5 Average Overweight (x) . | . . . . . . . . . . . . . . . . . . Largest Inventory Capacity 10 | 5 5 5 5 5 5 5 5 5 5 5 10 10 10 10 10 10 5 Average Capacity 8 | 5 5 5 5 5 5 5 5 5 5 5 8 10 10 10 10 9 5 Most Carried 10 | 4 . . 2 5 4 2 5 5 5 5 10 10 10 9 10 10 5 Average Carried 7 | 2 . . 1 3 2 2 3 4 4 4 7 10 10 7 7 9 4 Final Capacity 10 | 5 5 5 5 5 5 5 5 5 5 5 10 10 10 10 10 5 5 Final Carried 10 | . . . 2 5 2 2 5 5 5 5 10 10 10 7 10 5 5 Class Distribution -------------------- 38% | Scavenger-Mutant 31% | Hacker-Mutant 11% | Hacker-Scout 10% | Mutant 7% | Hacker-Skirmisher Dominant Class ---------------- Mutant | -10/Exiles Mutant | -9/Mines Mutant | -8/Materials Mutant | -7/Factory Mutant | -7/DSF Mutant | -6/Factory Mutant | -5/Factory Hacker-Mutant | -5/Upper Caves Scavenger-Mutant | -5/Upper Caves Scavenger-Mutant | -5/Warlord Scavenger-Mutant | -4/Proximity Caves Hacker-Scout | -4/Factory Hacker-Mutant | -4/Extension Hacker-Mutant | -3/Research Scavenger-Mutant | -3/Armory Resources | -11 -10 -10 -10 -9 -8 -7 -7 -6 -5 -5 -5 -5 -4 -4 -4 -3 -3 ----------- Run | Yrd Mat Min Exi Min Mat Fac DSF Fac Fac Upp Upp War Pro Fac Ext Res Arm Matter Collected 2335 | 197 . . . 53 . . 1 66 123 119 30 . 20 40 638 542 506 Remotely . | . . . . . . . . . . . . . . . . . . Salvage Created 4941 | . . . . . . . 6 66 123 347 . . 9 374 863 1437 1716 Parts 215 | . . . . . . . 2 6 9 13 . . 1 13 35 70 66 Haulers Intercepted 4 | . . . . . . . . . 1 . . . . 2 . 1 . Recyclers Shooed 1 | . . . . . . . . . . . . . . . 1 . . Parts Field Recycled . | . . . . . . . . . . . . . . . . . . Retrieved Matter . | . . . . . . . . . . . . . . . . . . Parts Self-Destructed 6 | . . . . . . . . . . 4 2 . . . . . . Prevented 2 | . . . . . . . . . . 2 . . . . . . . Kills | -11 -10 -10 -10 -9 -8 -7 -7 -6 -5 -5 -5 -5 -4 -4 -4 -3 -3 ------- Run | Yrd Mat Min Exi Min Mat Fac DSF Fac Fac Upp Upp War Pro Fac Ext Res Arm Combat Hostiles Destroyed 63 | . . . . . . . 1 . . 7 . . 1 . 10 23 21 Melee 16 | . . . . . . . . . . 7 . . 1 . . 6 2 Cannons 21 | . . . . . . . . . . . . . . . 10 . 11 AOE 18 | . . . . . . . 1 . . . . . . . . 17 . Classes Destroyed 20 | . . . . . . . 1 2 2 4 . . 1 2 1 2 5 Worker 5 | . . . . . . . . . . . . . . . . 5 . Builder 6 | . . . . . . . . . 2 . . . . . 2 2 . Tunneler 1 | . . . . . . . . . . . . . . . . 1 . Hauler 4 | . . . . . . . . . 1 . . . . 2 . 1 . Recycler 6 | . . . . . . . . . . . . . . 1 1 4 . Mechanic 1 | . . . . . . . . . . . . . . 1 . . . Operator 3 | . . . . . . . . 2 . . . . . . 1 . . Drone 1 | . . . . . . . . . . . . . 1 . . . . Watcher 2 | . . . . . . . . 1 . . . . . . . . 1 Swarmer 12 | . . . . . . . . . . 4 . . . . . 8 . Cutter 1 | . . . . . . . 1 . . . . . . . . . . Grunt 21 | . . . . . . . . . . 2 . . . . 7 7 5 Duelist 4 | . . . . . . . . . . . . . . . . . 4 Protector 1 | . . . . . . . . . . . . . . . . . 1 Sentry 5 | . . . . . . . . . . . . . . . 1 1 3 Demolisher 1 | . . . . . . . . . . . . . . . . . 1 Specialist 2 | . . . . . . . . . . . . . . . . . 2 Hunter 2 | . . . . . . . . . . . . . . . . . 2 Programmer 13 | . . . . . . . . . . 1 . . . . 2 7 3 Mutant 1 | . . . . . . . . . . 1 . . . . . . . Best Kill Streak 19 | . . . . . . . 1 1 1 6 . . 1 3 7 19 9 Combat Bots Only 12 | . . . . . . . 1 . . 6 . . 1 . 6 12 9 Max Kills in Single Turn 4 | . . . . . . . 1 1 1 1 . . 1 1 1 4 1 Gunslinging . | . . . . . . . . . . . . . . . . . . Exploded 4 | . . . . . . . 1 . . . . . . . . 4 . Melee 1 | . . . . . . . . . . 1 . . 1 . . 1 1 Uniques/NPCs Destroyed 1 | . . . . . . . . . . . . . . . 1 . . A7 (-4/Extension) Combat | -11 -10 -10 -10 -9 -8 -7 -7 -6 -5 -5 -5 -5 -4 -4 -4 -3 -3 -------- Run | Yrd Mat Min Exi Min Mat Fac DSF Fac Fac Upp Upp War Pro Fac Ext Res Arm Hostile Shots Fired 583 | . . 4 . 36 3 . 20 1 5 27 . . 30 . 119 174 164 Missed 209 | . . 1 . 19 1 . 4 . 3 11 . . 12 . 43 69 46 Hits 374 | . . 3 . 17 2 . 16 1 2 16 . . 18 . 76 105 118 Melee 20 | . . . . . . . 7 . . . . . . . . . 13 Projectile 354 | . . 3 . 17 2 . 9 1 2 16 . . 18 . 76 105 105 AOE 4 | . . . . . 1 . 2 . . . . . . . . . 1 Critical Strikes 23 | . . . . . . . 4 1 1 . . . . . 4 8 5 Actively Blocked 7 | . . . . . . . . . 1 . . . . . . 1 5 Part Disruptions 1 | . . . . . . . . . . . . . . . . 1 . Damage Taken 8920 | . . 21 . 158 109 . 440 18 48 239 . . 371 . 1762 2688 3066 Core 2043 | . . 9 . 75 109 . 170 . . 98 . . 20 . 253 679 630 Absorbed by Shields 98 | . . . . . . . 98 . . . . . . . . . . Reduced by Siege Mode 11 | . . . . . . . . . . . . . . . . . 11 Redirected to Shielding 61 | . . . . . . . . . 17 44 . . . . . . . Regen/Repaired (Parts) 305 | . . . . . . . . . . . . . . . 128 177 . Core Remaining (%) 83 | 100 . . . 66 80 . 75 100 . . . . 88 . 78 . . Volleys Fired 325 | . . . . . . . 1 . . . . . . . 182 21 121 Largest 2 | . . . . . . . 1 . . . . . . . 2 1 2 Hottest 130 | . . . . . . . 39 . . . . . . . 130 30 120 Shots Fired 327 | . . . . . . . 1 . . . . . . . 186 19 121 Gun 8 | . . . . . . . . . . . . . . . 8 . . Cannon 182 | . . . . . . . . . . . . . . . 61 . 121 Launcher 20 | . . . . . . . 1 . . . . . . . . 19 . Special 117 | . . . . . . . . . . . . . . . 117 . . Kinetic 59 | . . . . . . . . . . . . . . . 59 . . Thermal 190 | . . . . . . . . . . . . . . . 117 . 73 Explosive 20 | . . . . . . . 1 . . . . . . . . 19 . Electromagnetic 58 | . . . . . . . . . . . . . . . 10 . 48 Robot Hit Streak 15 | . . . . . . . 1 . . . . . . . 6 5 15 Robot Miss Streak 4 | . . . . . . . . . . . . . . . 3 4 4 Penetration Max 1 | . . . . . . . . . . . . . . . 1 . . Secondary Targets . | . . . . . . . . . . . . . . . . . . Capacitor 100 | . . . . . . . . . . . . . . . . . 100 Shots Hit Robots 290 | . . . . . . . 1 3 6 9 . . 1 12 113 47 98 Core Hits 152 | . . . . . . . 2 2 1 8 . . . 4 41 60 34 Critical Kills 10 | . . . . . . . . . . . . . . . 10 . . Critical Parts Destroyed 11 | . . . . . . . . . . . . . . . 11 . . Critical Strikes 39 | . . . . . . . . . 1 . . . . 2 29 5 2 Destroy 22 | . . . . . . . . . . . . . . . 22 . . Corrupt 2 | . . . . . . . . . . . . . . . . . 2 Sever 10 | . . . . . . . . . 1 . . . . 2 7 . . Impale 5 | . . . . . . . . . . . . . . . . 5 . Melee Attacks 181 | . . . . . . . . 14 8 11 . . 4 14 10 110 10 Impact . | . . . . . . . . . . . . . . . . . . Slashing 61 | . . . . . . . . 14 8 11 . . 4 14 10 . . Piercing 120 | . . . . . . . . . . . . . . . . 110 10 Sneak Attacks 24 | . . . . . . . . 2 3 2 . . . 4 2 11 . Combat Hostiles 1 | . . . . . . . . . . . . . . . . 1 . Follow-up Attacks 10 | . . . . . . . . . . . . . . . . 10 . Damage Inflicted 14757 | . . . . . . . 113 307 469 558 . . 69 830 2533 5804 4074 Guns 30 | . . . . . . . . . . . . . . . 30 . . Cannons 4622 | . . . . . . . . . . . . . . . 884 . 3738 Explosions 3721 | . . . . . . . 113 . . . . . . . 53 3385 170 Melee 5314 | . . . . . . . . 307 469 558 . . 69 830 496 2419 166 Ramming . | . . . . . . . . . . . . . . . . . . Kinetic 826 | . . . . . . . . . . . . . . . 826 . . Thermal 3596 | . . . . . . . . . . . . . . . 1123 . 2473 Explosive 3498 | . . . . . . . 113 . . . . . . . . 3385 . Electromagnetic 1523 | . . . . . . . . . . . . . . . 88 . 1435 Impact . | . . . . . . . . . . . . . . . . . . Slashing 2729 | . . . . . . . . 307 469 558 . . 69 830 496 . . Piercing 2585 | . . . . . . . . . . . . . . . . 2419 166 Highest Corruption 44 | . . . . . . . . . . 1 1 1 1 . 4 15 44 Average Corruption 10 | . . . . . . . . . . 1 1 1 1 . 3 9 23 Corruption Purged 7 | . . . . . . . . . . . . . . . . . 7 Corruption Blocked . | . . . . . . . . . . . . . . . . . . Effects 80 | . . . . . . . . . . . . . 2 . 6 27 45 Message Errors 15 | . . . . . . . . . . . . . . . 2 7 6 Matter Fused 15 | . . . . . . . . . . . . . . . . 4 11 Heat Flow Errors 7 | . . . . . . . . . . . . . . . . 3 4 Energy Discharges 13 | . . . . . . . . . . . . . 1 . 1 4 7 Parts Rejected 5 | . . . . . . . . . . . . . 1 . 1 1 2 Data Loss (minor) 8 | . . . . . . . . . . . . . . . . 3 5 Data Loss (major) 3 | . . . . . . . . . . . . . . . 2 1 . Misfires 1 | . . . . . . . . . . . . . . . . . 1 Alerts 2 | . . . . . . . . . . . . . . . . . 2 Misdirections 4 | . . . . . . . . . . . . . . . . 2 2 Weapon Failures 7 | . . . . . . . . . . . . . . . . 2 5 Overload Shots 4 | . . . . . . . . . . . . . . . . . 4 Overflow Damage 1172 | . . . . . . . 10 102 163 76 . . 39 85 110 551 36 Projectiles 61 | . . . . . . . . . . . . . . . 25 . 36 Explosions 143 | . . . . . . . 10 . . . . . . . . 133 . Melee 968 | . . . . . . . . 102 163 76 . . 39 85 85 418 . Knockbacks 9 | . . . . . . . . . . . . . . . 9 . . Impact . | . . . . . . . . . . . . . . . . . . Kinetic 9 | . . . . . . . . . . . . . . . 9 . . Secondary . | . . . . . . . . . . . . . . . . . . Self-Inflicted Damage 111 | . . . . . . . 63 . . . . . . . . 48 . Shots 2 | . . . . . . . 1 . . . . . . . . 1 . Rammed . | . . . . . . . . . . . . . . . . . . Targets Rammed . | . . . . . . . . . . . . . . . . . . Kicked . | . . . . . . . . . . . . . . . . . . Crushed . | . . . . . . . . . . . . . . . . . . Highest Temperature 305 | . . . . . . . . . . . . . 9 . 75 243 305 Average Temperature 87 | . . . . . . . . . . . . . 8 . 23 115 97 Received Heat Transfer 718 | . . . . 48 . . 9 27 . . . . 63 . 397 9 165 Siege Activations 1 | . . . . . . . . . . . . . . . . . 1 Total Turns 10 | . . . . . . . . . . . . . . . . . 10 Longest Duration 10 | . . . . . . . . . . . . . . . . . 10 Martial Activations . | . . . . . . . . . . . . . . . . . . Shielding Activations . | . . . . . . . . . . . . . . . . . . Robots Disrupted . | . . . . . . . . . . . . . . . . . . Combat Hostiles . | . . . . . . . . . . . . . . . . . . Robots Corrupted 9 | . . . . . . . . . . . . . . . . . 9 Combat Hostiles 8 | . . . . . . . . . . . . . . . . . 8 Parts Fried 16 | . . . . . . . . . . 1 . . . . . . 15 Impact Corruptions . | . . . . . . . . . . . . . . . . . . Robots Melted . | . . . . . . . . . . . . . . . . . . Combat Hostiles . | . . . . . . . . . . . . . . . . . . Parts Melted 7 | . . . . . . . . . . . . . . . 1 1 5 Heat Transferred 3551 | . . . . . . . . . . . . . . . 1467 . 2084 Parts Sabotaged 3 | . . . . . . . . . . . . . . . . . 3 Parts Stolen . | . . . . . . . . . . . . . . . . . . Parts Stripped . | . . . . . . . . . . . . . . . . . . Power Chain Reactions 2 | . . . . . . . . . . . . . . . 1 . 1 Alert | -11 -10 -10 -10 -9 -8 -7 -7 -6 -5 -5 -5 -5 -4 -4 -4 -3 -3 ------- Run | Yrd Mat Min Exi Min Mat Fac DSF Fac Fac Upp Upp War Pro Fac Ext Res Arm Maximum Alert Level 2 | . . . . . . . . . . . . . . 1 . 2 2 Low Security (%) 74 | 100 100 100 . 100 100 100 100 100 100 . . . . 48 100 81 14 Level 1 18 | . . . . . . . . . . . . . . 51 . 15 54 Level 2 6 | . . . . . . . . . . . . . . . . 3 31 Level 3 . | . . . . . . . . . . . . . . . . . . Level 4 . | . . . . . . . . . . . . . . . . . . Level 5 . | . . . . . . . . . . . . . . . . . . High Security . | . . . . . . . . . . . . . . . . . . Max Security . | . . . . . . . . . . . . . . . . . . Peak Influence 577 | . . . . 91 50 22 20 22 27 . . . . 300 120 577 548 Initial 300 | . . . . . 25 22 15 10 10 . . . . 300 58 27 258 Average 108 | . . . . 44 31 22 13 7 4 . . . . 202 25 82 319 Influence Increases 2864 | . . . . 151 25 . 30 67 48 205 . . 5 326 348 940 719 Destroy 0b10 Robot/C 1280 | . . . . 40 . . 20 . . 140 . . . . 220 460 400 Destroy 0b10 Robot/NC 140 | . . . . . . . . 5 15 . . . 5 20 20 65 10 Destroy Leader 224 | . . . . 10 . . . 2 2 20 . . . 4 30 72 84 Allied During Kill 8 | . . . . 6 . . . . . . . . . . 2 . . Trap Triggered on 0b10 30 | . . . . 20 10 . . . . . . . . . . . . Successful Hack 64 | . . . . . . . . 20 12 . . . . . . 32 . Disable Machine 180 | . . . . . . . . . . . . . . . 30 15 135 Destroy Structure 398 | . . . . . . . 10 10 4 . . . . 2 46 296 30 Advance Influence 300 | . . . . . . . . . . . . . . 300 . . . Partial Spotted 75 | . . . . 15 15 . . . . . . . . . . . 45 Lose Combat Pursuer 165 | . . . . 60 . . . 30 15 45 . . . . . . 15 Influence Decreases 2365 | . . . . 85 41 28 32 65 68 127 80 . 5 206 414 501 713 Entered New Map 440 | . . . . . 41 28 7 10 12 2 16 . . . 62 27 235 Time Decay 1499 | . . . . 75 . . . 55 49 115 64 . 5 206 242 320 368 Lost Part 399 | . . . . 10 . . 25 . . 10 . . . . 90 154 110 Lost Ally 27 | . . . . . . . . . 7 . . . . . 20 . . Squads Dispatched 16 | . 2 . . . 1 . 1 1 . . . . . . 2 6 3 Investigation 4 | . 2 . . . . . . 1 . . . . . . . 1 . Extermination 6 | . . . . . . . . . . . . . . . . 4 2 Reinforcement 5 | . . . . . 1 . 1 . . . . . . . 2 1 . Assault 1 | . . . . . . . . . . . . . . . . . 1 Garrison . | . . . . . . . . . . . . . . . . . . Intercept . | . . . . . . . . . . . . . . . . . . Searches Triggered . | . . . . . . . . . . . . . . . . . . Construction Impeded . | . . . . . . . . . . . . . . . . . . Haulers Reinforced . | . . . . . . . . . . . . . . . . . . Active Scanning Responses . | . . . . . . . . . . . . . . . . . . Cargo Convoy Interrupts . | . . . . . . . . . . . . . . . . . . Stealth | -11 -10 -10 -10 -9 -8 -7 -7 -6 -5 -5 -5 -5 -4 -4 -4 -3 -3 --------- Run | Yrd Mat Min Exi Min Mat Fac DSF Fac Fac Upp Upp War Pro Fac Ext Res Arm Distress Signals 6 | . . . . . . . . 2 1 . . . . . 1 1 1 Communications Jammed . | . . . . . . . . . . . . . . . . . . Distress Signals . | . . . . . . . . . . . . . . . . . . Times Spotted 137 | . 1 3 . 15 4 . 3 8 3 10 . . 7 1 16 35 31 Peak Tracking Total 10 | . . 3 . 6 3 . 3 4 1 5 . . 4 1 4 10 5 Tactical Retreats 7 | . . . . 2 . . . 2 1 1 . . . . . . 1 Traps | -11 -10 -10 -10 -9 -8 -7 -7 -6 -5 -5 -5 -5 -4 -4 -4 -3 -3 ------- Run | Yrd Mat Min Exi Min Mat Fac DSF Fac Fac Upp Upp War Pro Fac Ext Res Arm Traps Triggered 6 | . . . . . . . 2 1 . . . . . . . 1 2 Indirectly . | . . . . . . . . . . . . . . . . . . Trap Hack Attempts . | . . . . . . . . . . . . . . . . . . Triggered . | . . . . . . . . . . . . . . . . . . Disarmed . | . . . . . . . . . . . . . . . . . . Reprogrammed . | . . . . . . . . . . . . . . . . . . Reused 3 | . . . . 2 1 . . . . . . . . . . . . Traps Extracted . | . . . . . . . . . . . . . . . . . . Installed 3 | . . . . 2 1 . . . . . . . . . . . . Triggered 3 | . . . . 2 1 . . . . . . . . . . . . Most Traps Carried 3 | . . . . 3 2 1 1 . . . . . . . . . . Machines | -11 -10 -10 -10 -9 -8 -7 -7 -6 -5 -5 -5 -5 -4 -4 -4 -3 -3 ---------- Run | Yrd Mat Min Exi Min Mat Fac DSF Fac Fac Upp Upp War Pro Fac Ext Res Arm Machines Disabled 12 | . . . . . . . . . . . . . . . 2 1 9 Max in Single Turn 4 | . . . . . . . . . . . . . . . 1 1 4 Garrison Access 1 | . . . . . . . . . 1 . . . . . . . . Machines Repaired . | . . . . . . . . . . . . . . . . . . Machines Dismantled . | . . . . . . . . . . . . . . . . . . Machines Sabotaged . | . . . . . . . . . . . . . . . . . . Overloaded Fab Kills . | . . . . . . . . . . . . . . . . . . Hacking | -11 -10 -10 -10 -9 -8 -7 -7 -6 -5 -5 -5 -5 -4 -4 -4 -3 -3 --------- Run | Yrd Mat Min Exi Min Mat Fac DSF Fac Fac Upp Upp War Pro Fac Ext Res Arm Machines Accessed 22 | . 3 . 1 . . 1 . 3 2 . 1 . . 1 4 3 3 Terminals 15 | . 3 . . . . 1 . 2 . . . . . 1 4 2 2 Fabricators 1 | . . . . . . . . . 1 . . . . . . . . Repair Stations . | . . . . . . . . . . . . . . . . . . Recycling Units 2 | . . . . . . . . . . . . . . . . 1 1 Scanalyzers . | . . . . . . . . . . . . . . . . . . Garrison Access 2 | . . . . . . . . 1 1 . . . . . . . . Total Hacks 45 | . 8 . 1 . . 1 . 7 3 . 1 . . 1 8 10 5 Successful 23 | . . . 1 . . 1 . 3 2 . 1 . . 1 6 6 2 Failed 22 | . 8 . . . . . . 4 1 . . . . . 2 4 3 Catastrophic 7 | . 5 . . . . . . 1 . . . . . . . . 1 Database Lockouts . | . . . . . . . . . . . . . . . . . . Manual 18 | . 4 . 1 . . . . 6 2 . . . . . 1 4 . Terminals 35 | . 8 . . . . 1 . 6 . . . . . 1 8 8 3 Fabricators 2 | . . . . . . . . . 2 . . . . . . . . Repair Stations . | . . . . . . . . . . . . . . . . . . Recycling Units 4 | . . . . . . . . . . . . . . . . 2 2 Scanalyzers . | . . . . . . . . . . . . . . . . . . Garrison Access 2 | . . . . . . . . 1 1 . . . . . . . . Terminal Hacks 14 | . . . 1 . . 1 . 1 . . 1 . . 1 5 3 1 Open Door 5 | . . . . . . . . . . . 1 . . 1 3 . . Open DSF 1 | . . . . . . 1 . . . . . . . . . . . Level Access Points 1 | . . . . . . . . 1 . . . . . . . . . Branch Access Points 1 | . . . . . . . . . . . . . . . . 1 . Emergency Access Points 1 | . . . . . . . . . . . . . . . . 1 . Machine Index 2 | . . . . . . . . . . . . . . . 1 1 . Patrol Status 1 | . . . . . . . . . . . . . . . 1 . . Recall Assault 1 | . . . . . . . . . . . . . . . . . 1 Proto ID Catalog 1 | . . . 1 . . . . . . . . . . . . . . Fabricator Hacks . | . . . . . . . . . . . . . . . . . . Repair Station Hacks . | . . . . . . . . . . . . . . . . . . Recycling Unit Hacks 2 | . . . . . . . . . . . . . . . . 1 1 Retrieve Components 2 | . . . . . . . . . . . . . . . . 1 1 Scanalyzer . | . . . . . . . . . . . . . . . . . . Garrison Access Hacks 1 | . . . . . . . . . 1 . . . . . . . . Seal Access 1 | . . . . . . . . . 1 . . . . . . . . Unauthorized Hacks 6 | . . . . . . . . 2 1 . . . . . 1 2 . Terminals 5 | . . . . . . . . 2 . . . . . . 1 2 . Assimilate 2 | . . . . . . . . 2 . . . . . . . . . Botnet 2 | . . . . . . . . . . . . . . . 1 1 . Operators 1 | . . . . . . . . . . . . . . . . 1 . Fabricators 1 | . . . . . . . . . 1 . . . . . . . . Haulers 1 | . . . . . . . . . 1 . . . . . . . . Repair Stations . | . . . . . . . . . . . . . . . . . . Recycling Units . | . . . . . . . . . . . . . . . . . . Scanalyzers . | . . . . . . . . . . . . . . . . . . Garrison Access . | . . . . . . . . . . . . . . . . . . Data Cores Recovered . | . . . . . . . . . . . . . . . . . . Used . | . . . . . . . . . . . . . . . . . . Hacking Detections 15 | . 3 . . . . . . 3 1 . . . . . 2 3 3 Full Trace Events 3 | . 3 . . . . . . . . . . . . . . . . Feedback Events . | . . . . . . . . . . . . . . . . . . Feedback Blocked . | . . . . . . . . . . . . . . . . . . Robot Schematics Acquired . | . . . . . . . . . . . . . . . . . . Robots Built . | . . . . . . . . . . . . . . . . . . Authchips . | . . . . . . . . . . . . . . . . . . Time . | . . . . . . . . . . . . . . . . . . Total Robot Build Rating . | . . . . . . . . . . . . . . . . . . Part Schematics Acquired . | . . . . . . . . . . . . . . . . . . Parts Built . | . . . . . . . . . . . . . . . . . . Authchips . | . . . . . . . . . . . . . . . . . . Time . | . . . . . . . . . . . . . . . . . . Total Part Build Rating . | . . . . . . . . . . . . . . . . . . Parts Repaired . | . . . . . . . . . . . . . . . . . . Time . | . . . . . . . . . . . . . . . . . . Parts Recycled . | . . . . . . . . . . . . . . . . . . Recycled Matter . | . . . . . . . . . . . . . . . . . . Retrieved Matter . | . . . . . . . . . . . . . . . . . . Retrieved Components 10 | . . . . . . . . . . . . . . . . 10 . Parts Scanalyzed . | . . . . . . . . . . . . . . . . . . Part Schematics Acquired . | . . . . . . . . . . . . . . . . . . Parts Damaged . | . . . . . . . . . . . . . . . . . . Bothacking | -11 -10 -10 -10 -9 -8 -7 -7 -6 -5 -5 -5 -5 -4 -4 -4 -3 -3 ------------ Run | Yrd Mat Min Exi Min Mat Fac DSF Fac Fac Upp Upp War Pro Fac Ext Res Arm Used RIF Installer . | . . . . . . . . . . . . . . . . . . Robots Hacked . | . . . . . . . . . . . . . . . . . . Non-combat . | . . . . . . . . . . . . . . . . . . Combat . | . . . . . . . . . . . . . . . . . . Robot Hacks Applied . | . . . . . . . . . . . . . . . . . . Relay Couplers Released . | . . . . . . . . . . . . . . . . . . Fabnet Peak Effective % . | . . . . . . . . . . . . . . . . . . Robots Rewired . | . . . . . . . . . . . . . . . . . . Allies Hacked . | . . . . . . . . . . . . . . . . . . Hacks Repelled . | . . . . . . . . . . . . . . . . . . Allies | -11 -10 -10 -10 -9 -8 -7 -7 -6 -5 -5 -5 -5 -4 -4 -4 -3 -3 -------- Run | Yrd Mat Min Exi Min Mat Fac DSF Fac Fac Upp Upp War Pro Fac Ext Res Arm Total Allies 7 | . . . . 2 . . . 2 . . . . . . 3 . . Largest Group 2 | . . . . 2 . . . . . . . . . . 2 . . Highest-Rated Group 159 | . . . . 49 . . . . . . . . . . 159 . . Highest-Rated Ally 159 | . . . . 31 . . . . . . . . . . 159 . . Total Orders 1 | . . . . . . . . . 1 . . . . . . . . EXPLORE 1 | . . . . . . . . . 1 . . . . . . . . Ally Attacks 5 | . . . . 4 . . . . . . . . . . 1 . . Total Damage 138 | . . . . 63 . . . . . . . . . . 75 . . Kills 3 | . . . . 2 . . . . . . . . . . 1 . . Allies Corrupted 1 | . . . . . . . . . . . . . . . 1 . . Allies Melted . | . . . . . . . . . . . . . . . . . . Intel | -11 -10 -10 -10 -9 -8 -7 -7 -6 -5 -5 -5 -5 -4 -4 -4 -3 -3 ------- Run | Yrd Mat Min Exi Min Mat Fac DSF Fac Fac Upp Upp War Pro Fac Ext Res Arm Active Infowar (turns) 5212 | . . . . . . . 14 . 74 354 263 21 398 425 1486 1328 849 Optics 4471 | . . . . . . . . . . . . . 383 425 1486 1328 849 Structural 1057 | . . . . . . . . . 39 352 263 21 382 . . . . Traps 2308 | . . . . . . . . . 73 352 102 21 386 425 890 59 . Cloaking 1208 | . . . . . . . 14 . 1 27 206 21 137 . 298 504 . Robot Analysis Total . | . . . . . . . . . . . . . . . . . . Derelict Logs Recovered 4 | . . . . 1 . . . . . 1 1 . 1 . . . . Drone Launches 2 | . . . . . . . . . 2 . . . . . . . . Drone Recoveries . | . . . . . . . . . . . . . . . . . . Exploration | -11 -10 -10 -10 -9 -8 -7 -7 -6 -5 -5 -5 -5 -4 -4 -4 -3 -3 ------------- Run | Yrd Mat Min Exi Min Mat Fac DSF Fac Fac Upp Upp War Pro Fac Ext Res Arm Turns Passed 6055 | 4 23 7 111 169 19 6 51 178 212 361 399 29 398 425 1486 1328 849 Spaces Moved 5066 | 1 42 14 217 355 50 19 65 206 298 537 369 37 576 256 505 1050 469 Core 524 | 1 42 14 217 118 . . 12 115 . . . . . . . . 5 Treads 167 | . . . . . . . . . . . . . . . . . 167 Legs 605 | . . . . . . . . . . . . . . . 191 366 48 Wheels . | . . . . . . . . . . . . . . . . . . Hover 3226 | . . . . . . . . 91 298 537 369 37 576 256 314 648 100 Flight 544 | . . . . 237 50 19 53 . . . . . . . . 36 149 Fastest Speed 20 | 50 50 50 50 37 31 31 31 50 56 52 58 58 58 66 66 32 20 Average Speed 72 | 50 50 50 50 41 31 31 34 53 56 57 58 58 58 66 135 75 109 Slowest Speed 300 | 50 50 50 50 50 31 31 50 150 58 66 66 58 131 66 260 176 300 Overloaded Moves 36 | . . . . . . . . . . . . . . . . 36 . Propulsion Burnouts . | . . . . . . . . . . . . . . . . . . Robots Hopped 5 | . . . . 5 . . . . . . . . . . . . . Potential Cave-ins 2 | . . . . . . . . . . . . . . . . 2 . Cave-ins Triggered . | . . . . . . . . . . . . . . . . . . Exploration Rate (%) 33 | 3 14 5 62 64 14 . 53 13 15 81 56 8 74 9 46 24 25 Regions Visited 17 Branch Regions 9 Pre-discovered Areas . | . . . . . . . . . . . . . . . . . . Known Exits Taken 12 | . 1 1 1 1 1 1 . 1 . . 1 1 . 1 1 1 . Unknown Exits Taken 4 | 1 . . . . . . . . 1 1 . . 1 . . . . Scrap Searched 10 | . . . . 2 . . . . . 4 2 . 2 . . . . Spaces Dug 82 | . . . . . . . . 11 2 1 . . 1 1 10 51 5 Terrain Destroyed 272 | . . . . . . . 15 11 2 1 . . 1 1 34 192 15 Melee 65 | . . . . . . . . 11 2 1 . . 1 1 3 42 4 Projectile 34 | . . . . . . . . . . . . . . . 23 . 11 AOE 173 | . . . . . . . 15 . . . . . . . 8 150 . Terrain Rammed . | . . . . . . . . . . . . . . . . . . Walls Destroyed . | . . . . . . . . . . . . . . . . . . Machines Disabled . | . . . . . . . . . . . . . . . . . . Actions | -11 -10 -10 -10 -9 -8 -7 -7 -6 -5 -5 -5 -5 -4 -4 -4 -3 -3 --------- Run | Yrd Mat Min Exi Min Mat Fac DSF Fac Fac Upp Upp War Pro Fac Ext Res Arm Total 6771 | 5 42 13 218 371 53 18 92 246 323 567 554 44 629 483 982 1380 751 Wait 914 | . . . . 5 . . . 6 6 11 170 8 47 210 231 136 84 Move 5039 | . 41 13 216 344 49 18 64 205 297 536 368 36 575 255 504 1049 469 Hop 5 | . . . . 5 . . . . . . . . . . . . . Pick Up 62 | . . . 2 7 . . 2 2 1 2 8 . . . 10 20 8 Fast Attach 84 | . 1 . . 3 . . 1 6 6 4 1 . 2 1 13 17 29 Attach 55 | 1 . . . 1 2 . 2 6 2 1 3 . . 3 9 14 11 Detach 24 | . . . . . . . 2 5 1 . 1 . . . 6 5 4 Swap 22 | . . . . . . . . 1 . . . . . . 9 8 4 Drop 66 | 4 . . . 4 1 . 1 1 2 2 3 . 1 . 8 28 11 Fire 325 | . . . . . . . 1 . . . . . . . 182 21 121 Melee 153 | . . . . . . . . 14 8 11 . . 4 14 10 82 10 Ram . | . . . . . . . . . . . . . . . . . . Kick . | . . . . . . . . . . . . . . . . . . Crush . | . . . . . . . . . . . . . . . . . . Escape Stasis 19 | . . . . . . . 19 . . . . . . . . . . Rewire . | . . . . . . . . . . . . . . . . . . Trap 3 | . . . . 2 1 . . . . . . . . . . . . Miscellaneous . | . . . . . . . . . . . . . . . . . . Route ------- -11/Scrapyard -10/Materials -10/Mines -10/Exiles -9/Mines -8/Materials -7/Factory -7/DSF -6/Factory (discovered 4 exits: *Fac x4) -5/Factory -5/Upper Caves -5/Upper Caves -5/Warlord -4/Proximity Caves -4/Factory (discovered 4 exits: Res x2 / Upp / *Ext) -4/Extension -3/Research (discovered 4 exits: [*Res] / *Arm / *Qua x2) -3/Armory History --------- Turn | Location | Event 1 | -11/Scrapyard | Released all parts (6) 5 | -11/Scrapyard | Discovered new exit (range 0) 5 | -11/Scrapyard | Entered Materials 16 | -10/Materials | Discovered new exit (range 14) 27 | -10/Materials | Identified exit to Mines 28 | -10/Materials | Entered Mines 33 | -10/Mines | Deemed a non-threat by the Exiles lab entrance 33 | -10/Mines | Discovered new exit (range 5) 35 | -10/Mines | Identified exit to Exiles 35 | -10/Mines | Entered Exiles 49 | -10/Exiles | Met 8R-AWN 58 | -10/Exiles | Met EX-HEX 75 | -10/Exiles | Met EX-BIN 82 | -10/Exiles | Aligned with FarCom system 83 | -10/Exiles | Given EX-Vault access code 94 | -10/Exiles | Opened EX-Vault 97 | -10/Exiles | Found Cloak of Protection 109 | -10/Exiles | Warned to stay clear of 0b10 Research branches 123 | -10/Exiles | Met EX-DEC 140 | -10/Exiles | Discovered new exit (range 14) 145 | -10/Exiles | Identified exit to Mines 146 | -10/Exiles | Left Exiles lab with Cloak of Protection 146 | -10/Exiles | Entered Mines 193 | -9/Mines | Found a hidden stash of uninstalled traps 312 | -9/Mines | Discovered new exit (range 9) 314 | -9/Mines | Assembled infested the area 314 | -9/Mines | Identified exit to Materials 315 | -9/Mines | Entered Materials 315 | -8/Materials | Evolved 4 slots: Propulsion x2, Utility x2 316 | -8/Materials | Identified exit to Factory 334 | -8/Materials | Entered Factory 334 | -7/Factory | Evolved 2 slots: Utility x2 338 | -7/Factory | Identified exit to DSF 340 | -7/Factory | Entered DSF 367 | -7/DSF | Additional patrols routed to DSF 385 | -7/DSF | Discovered new exit (range 12) 391 | -7/DSF | Entered Factory 391 | -6/Factory | Evolved 2 slots: Propulsion x1, Utility x1 414 | -6/Factory | Lost 5 parts (4n1w) 462 | -6/Factory | Build established: Mutant 462 | -6/Factory | Identified exit to Factory 569 | -6/Factory | Entered another Factory area 569 | -5/Factory | Evolved 2 slots: Power x1, Propulsion x1 748 | -5/Factory | Discovered new exit (range 16) 781 | -5/Factory | Entered Upper Caves 867 | -5/Upper Caves | Learned 12 Factory zone layouts 1094 | -5/Upper Caves | Discovered new exit (range 11) 1099 | -5/Upper Caves | Encountered a Warlord checkpoint 1131 | -5/Upper Caves | Attracted the attention of an 0b10 checkpoint 1142 | -5/Upper Caves | Entered another Upper Caves area 1222 | -5/Upper Caves | Learned location of 1 exit from Factory 1327 | -5/Upper Caves | Build established: Scavenger-Mutant 1533 | -5/Upper Caves | Discovered new exit (range 12) 1541 | -5/Upper Caves | Identified exit to Warlord 1541 | -5/Upper Caves | Entered Warlord 1558 | -5/Warlord | Discovered new exit (range 9) 1562 | -5/Warlord | Identified exit to Proximity Caves 1570 | -5/Warlord | Entered Proximity Caves 1694 | -4/Proximity Caves | Learned Research terminal intel 1838 | -4/Proximity Caves | Spotter reported a threat 1891 | -4/Proximity Caves | Spotter reported a threat 1926 | -4/Proximity Caves | Discovered new exit (range 5) 1968 | -4/Proximity Caves | Entered Factory 1968 | -4/Factory | Evolved 2 slots: Utility x2 1969 | -4/Factory | Identified exit to Upper Caves 1970 | -4/Factory | Identified exit to Research 1970 | -4/Factory | Identified exit to Extension 1998 | -4/Factory | Lost 3 parts (1n2u) 2273 | -4/Factory | Build established: Hacker-Scout 2393 | -4/Factory | Entered Extension 2425 | -4/Extension | Rescued a captive Derelict 2426 | -4/Extension | Rescued a captive Derelict 2682 | -4/Extension | Lost 5 parts (2p2n1w) 2689 | -4/Extension | Rescued A7 3067 | -4/Extension | Found Prototype Protection 3302 | -4/Extension | Murdered A7 3324 | -4/Extension | Extracted ID and sensor layout for unrecognized location from A7's data core 3565 | -4/Extension | Identified Med. Regenerative Plating 3611 | -4/Extension | Build established: Hacker-Mutant 3643 | -4/Extension | Lost 4 parts (1n2u1w) 3852 | -4/Extension | Spotted B-86 Titan 3861 | -4/Extension | Spotted B-86 Titan 3877 | -4/Extension | Discovered exit to Research (range 3) 3879 | -4/Extension | Entered Research 3879 | -3/Research | Evolved 2 slots: Utility x1, Weapon x1 3880 | -3/Research | Loaded intel: 22 terminal locations 3907 | -3/Research | Lost 3 parts (2u1w) 4009 | -3/Research | Spotted B-86 Titan 4233 | -3/Research | Identified exit to Armory 4233 | -3/Research | Identified exit to Quarantine 4441 | -3/Research | Lost 3 parts (1n2u) 4524 | -3/Research | Found Gamma Bomb Array 4582 | -3/Research | Discovered new exit (range 14) 4691 | -3/Research | System corruption reached 10% 4734 | -3/Research | Lost 6 parts (1p2n3u) 4875 | -3/Research | Found Prototype Launcher 4875 | -3/Research | Identified Adv. Micro-nuke Launcher 4878 | -3/Research | Found Adv. Micro-nuke Launcher 4879 | -3/Research | Found Faulty Adv. Micro-nuke Launcher 4881 | -3/Research | Found Adv. Micro-nuke Launcher 5006 | -3/Research | Destroyed 12 combat bots 5033 | -3/Research | Build established: Scavenger-Mutant 5205 | -3/Research | Core integrity fell below 50% 5207 | -3/Research | Entered Armory 5238 | -3/Armory | Lost 10 parts (1p6n1u2w) 5423 | -3/Armory | Core integrity fell below 20% 5449 | -3/Armory | Lost 3 parts (1p1n1w) 5465 | -3/Armory | Found Quantum Capacitor 5816 | -3/Armory | System corruption reached 30% 5845 | -3/Armory | Destroyed 9 combat bots 5853 | -3/Armory | Lost 4 parts (2p1n1w) 5957 | -3/Armory | First assault squad dispatched 6056 | -3/Armory | Destroyed by P-80 Master with Gamma Rifle Last Messages --------------- 06024_ Acquired Prototype Flight Unit. 06024_ Identified Electron Diverter. 06027_ Dropped Imp. Thunder Leg. 06028_ Acquired Electron Diverter. 06031_ Dropped Hvy. Treads. 06031_ Acquired Electron Diverter. 06033_ System corrupted: Matter fused (-6). 06035_ Acquired Electron Diverter. 06038_ Dropped Arm. Heavy Treads. 06038_ Acquired Electron Diverter. 06040_ Dropped Com. HERF Cannon. 06040_ Dropped Energy Well. 06041_ Dropped Lgt. Antimatter Reactor. 06042_ Acquired Electron Diverter. 06046_ Door malfunctions. 06047_ Adv. Cooling System destroyed. 06048_ System corrupted: Matter fused (-5). 06055_ System corrupted: Slammed into wall. 06055_ Adv. Hacking Suite destroyed. 06055_ System corrupted by crushing effect (+4). Map ----- +----------------------------------------------------+ | ?????????????????????????????????????????????????? | | ?????????????????????????????????????????????????? | | ?????????????????????????????????????????????????? | | ?????????????????????????????????????????????????? | | ?????????????????????????????????????????????????? | | ?????????????????????????????????????????????????? | | ?????????????????????????????????????????????????? | | ?????????????????????????????????????????????????? | | ?????????????????????????????????????????????????? | | ?????????????????????????????????????????????????? | | ?????????????????????????????????????????????????? | | ?????????????????????????????????????????????????? | | ???????????????????????????????????????????? ???? | | ????????????????????????????????????????? ???? | | ????????????????????????????????????????? !! ??? | | ???????????????????????????????????????? !! ??? | | ??????????????????????????????????????? ??? | | ????????????????????????????###+####### ? | | ????????????????????????????# """ ?? | | ????????????????????????##??# """ ?? | | ??????????????????######"#??# """ !?? | | ??????????????????# ##### ? | | ??????????????????# """ /p #? | | ???????????Y??????# """p# """ #? | | ?????????w?Y??????# """ # p """ #? | | ??????????????????# #@ """ #? | | ??????????????????# """ / ## | | ??????????????????# """ # | | ??????????????????# """ #######+###### ## | | ??????????????????# # "###+###+## | | ??????????????????# # == #!/ + | | ??????????????????# [ # === #/ ! ! ### | | ??????????????????# # *]= === # #?? | | ??????????????????####### ! # """ """ #?? | | ????????????????????????########################?? | | ?????????????????????????????????????????????????? | | ?????????????????????????????????????????????????? | | ?????????????????????????????????????????????????? | | ?????????????????????????????????????????????????? | | ?????????????????????????????????????????????????? | | ?????????????????????????????????????????????????? | | ?????????????????????????????????????????????????? | | ?????????????????????????????????????????????????? | | ?????????????????????????????????????????????????? | | ?????????????????????????????????????????????????? | | | | | | | | | | | +----------------------------------------------------+ Best States ------------- Heat Dissipation 115 Energy Generation 51 Energy Capacity 770 Matter Stores 300 Matter Capacity 300 Sight Range 20 Terrain Scan Density 10 Cloak Strength 5 Power Amplification 30 Additional Mass Support 9 Armor Coverage 325 Weapon Shielding 66 Evasion (%) 63 Target Analysis 8 Recoil Reduction 4 Salvage Targeting 4 Offensive Hacking 34 Defensive Hacking 21 Item Schematics ----------------- None Robot Schematics ------------------ None Fabricated ------------ Nothing Repaired ---------- Nothing Alien Tech Used ----------------- None Achievements -------------- None Challenges ------------ None Game ------ Seed VisualBlastCorpse Manual? 0 Play Time 01:20:23 Cumulative 541.0 hours Start 2025.06.16 @ 05:23:06 End 2025.06.16 @ 06:43:36 Sessions 1 Manual Loads 0 Difficulty Rogue Special Mode None Game No. 644 Rogue 644 Adventurer 0 Explorer 0 Win Type - Total 19 Types 13/0/5/1/0/0/0/0/0/0 Lore% 84 Gallery% 83 Achievement% 82 Wizard Run 0 Options --------- Layout 0 ASCII 0 Keyboard 0 Movement Numpad Keybinds 0 Fullscreen 1 Font 18/SmallcapsGlow Map View 76x50 Zoom Use 0% Tactical HUD 1 Map Filters NONE Filters NONE Steam 1 RUN: 932d1c22-233c-4e80-b1ca-329cfb5676c6